[Event "Late-Titled-Tuesday-Blitz-June-04-2024"]
[Site "Chess.com"]
[Date "2024.06.04"]
[Round "2"]
[White "Bob_2004"]
[Black "nihalsarin"]
[Result "0-1"]
[WhiteElo "2637"]
[BlackElo "3244"]
[TimeControl "180+1"]
[EndTime "14:14:22 PDT"]
[Termination "nihalsarin won by resignation"]

1. d4 {[%clk 0:03:00.9]} 1... Nc6 {[%clk 0:02:59.7]} 2. d5 {[%clk 0:03:01]} 2...
Ne5 {[%clk 0:02:59.9]} 3. f4 {[%clk 0:03:01.6]} 3... Ng6 {[%clk 0:02:58.1]} 4.
e4 {[%clk 0:03:02.2]} 4... e6 {[%clk 0:02:58.5]} 5. dxe6 {[%clk 0:03:03.1]} 5...
fxe6 {[%clk 0:02:58.8]} 6. h4 {[%clk 0:03:02.7]} 6... Nf6 {[%clk 0:02:52.6]} 7.
h5 {[%clk 0:02:58.9]} 7... Ne7 {[%clk 0:02:53.2]} 8. e5 {[%clk 0:02:55.9]} 8...
Nfd5 {[%clk 0:02:53.1]} 9. c4 {[%clk 0:02:55.8]} 9... Nb4 {[%clk 0:02:53]} 10.
a3 {[%clk 0:02:54.5]} 10... Nbc6 {[%clk 0:02:53]} 11. b4 {[%clk 0:02:43.5]}
11... Nf5 {[%clk 0:02:52.8]} 12. Bd3 {[%clk 0:02:16.8]} 12... a5 {[%clk
0:02:47.5]} 13. b5 {[%clk 0:02:14.7]} 13... Ncd4 {[%clk 0:02:47.5]} 14. g4
{[%clk 0:02:13.1]} 14... Nh6 {[%clk 0:02:39.5]} 15. Bb2 {[%clk 0:01:41.9]} 15...
c5 {[%clk 0:02:39.3]} 16. Be4 {[%clk 0:01:34.6]} 16... d5 {[%clk 0:02:37.2]} 17.
exd6 {[%clk 0:01:24.7]} 17... Bxd6 {[%clk 0:02:36.7]} 18. Ne2 {[%clk 0:01:14.9]}
18... Nxg4 {[%clk 0:02:28.4]} 19. Nxd4 {[%clk 0:01:12.1]} 19... Ne3 {[%clk
0:02:29.1]} 20. Qd3 {[%clk 0:01:04.1]} 20... cxd4 {[%clk 0:02:26.1]} 21. Qxd4
{[%clk 0:01:05]} 21... Bxf4 {[%clk 0:02:16.2]} 22. Bd5 {[%clk 0:00:33.3]} 22...
Nc2+ {[%clk 0:02:13.8]} 0-1

[Event "Late-Titled-Tuesday-Blitz-June-04-2024"]
[Site "Chess.com"]
[Date "2024.06.04"]
[Round "2"]
[White "Nemsko"]
[Black "Oleg_Papayan"]
[Result "1/2-1/2"]
[WhiteElo "2346"]
[BlackElo "2560"]
[TimeControl "180+1"]
[EndTime "14:14:24 PDT"]
[Termination "Game drawn by repetition"]

1. e4 {[%clk 0:03:00.9]} 1... d5 {[%clk 0:03:00.4]} 2. exd5 {[%clk 0:02:54.4]}
2... Qxd5 {[%clk 0:03:01.3]} 3. Nc3 {[%clk 0:02:53.3]} 3... Qd8 {[%clk
0:03:01.7]} 4. d4 {[%clk 0:02:52]} 4... c6 {[%clk 0:03:02.6]} 5. Nf3 {[%clk
0:02:48.5]} 5... Bf5 {[%clk 0:03:03.1]} 6. Bd3 {[%clk 0:02:47.8]} 6... Bg6
{[%clk 0:03:03]} 7. O-O {[%clk 0:02:47.2]} 7... e6 {[%clk 0:03:03.2]} 8. Bf4
{[%clk 0:02:45.9]} 8... Be7 {[%clk 0:02:58.6]} 9. Ne4 {[%clk 0:02:45.2]} 9...
Nf6 {[%clk 0:02:56.6]} 10. Re1 {[%clk 0:02:44.7]} 10... O-O {[%clk 0:02:55.3]}
11. c3 {[%clk 0:02:41.2]} 11... Nxe4 {[%clk 0:02:53.4]} 12. Bxe4 {[%clk
0:02:40.7]} 12... Nd7 {[%clk 0:02:53.2]} 13. Qc2 {[%clk 0:02:33.4]} 13... Nf6
{[%clk 0:02:48]} 14. Bxg6 {[%clk 0:02:32.3]} 14... hxg6 {[%clk 0:02:48.9]} 15.
Ne5 {[%clk 0:02:30]} 15... Nd5 {[%clk 0:02:49.3]} 16. Bd2 {[%clk 0:02:28.6]}
16... Bg5 {[%clk 0:02:49.6]} 17. Rad1 {[%clk 0:02:26.2]} 17... Bxd2 {[%clk
0:02:42.2]} 18. Rxd2 {[%clk 0:02:26.3]} 18... Qg5 {[%clk 0:02:40.9]} 19. Rd3
{[%clk 0:02:25.6]} 19... Rfd8 {[%clk 0:02:28.3]} 20. Rg3 {[%clk 0:02:25.6]}
20... Qf5 {[%clk 0:02:24.9]} 21. Qd1 {[%clk 0:02:13.9]} 21... Nf6 {[%clk
0:02:15.8]} 22. Rf3 {[%clk 0:02:09.8]} 22... Qh5 {[%clk 0:02:11.7]} 23. Qd2
{[%clk 0:02:03.7]} 23... c5 {[%clk 0:01:54.1]} 24. Rh3 {[%clk 0:01:51.5]} 24...
Qf5 {[%clk 0:01:54.1]} 25. Rf3 {[%clk 0:01:52.1]} 25... Qh5 {[%clk 0:01:53.7]}
26. Rh3 {[%clk 0:01:32.4]} 26... Qf5 {[%clk 0:01:44.6]} 27. Rf3 {[%clk
0:01:32.2]} 27... Qh5 {[%clk 0:01:20.9]} 1/2-1/2

[Event "Late-Titled-Tuesday-Blitz-June-04-2024"]
[Site "Chess.com"]
[Date "2024.06.04"]
[Round "2"]
[White "GMthekingindian"]
[Black "Rutricks"]
[Result "0-1"]
[WhiteElo "2355"]
[BlackElo "2690"]
[TimeControl "180+1"]
[EndTime "14:14:42 PDT"]
[Termination "Rutricks won by resignation"]

1. e4 {[%clk 0:03:00.9]} 1... g6 {[%clk 0:03:00.9]} 2. d4 {[%clk 0:03:00.4]}
2... Bg7 {[%clk 0:03:01.8]} 3. Nc3 {[%clk 0:02:59.1]} 3... c6 {[%clk 0:03:02.3]}
4. Nf3 {[%clk 0:02:58.1]} 4... d5 {[%clk 0:03:02.9]} 5. h3 {[%clk 0:02:57.2]}
5... dxe4 {[%clk 0:03:03.8]} 6. Nxe4 {[%clk 0:02:57.1]} 6... Nf6 {[%clk
0:03:04.7]} 7. Bd3 {[%clk 0:02:41.8]} 7... Nbd7 {[%clk 0:03:05.1]} 8. Nxf6+
{[%clk 0:02:36.9]} 8... exf6 {[%clk 0:03:05.2]} 9. Qe2+ {[%clk 0:02:26.9]} 9...
Qe7 {[%clk 0:03:05.6]} 10. Qxe7+ {[%clk 0:02:24.9]} 10... Kxe7 {[%clk
0:03:06.5]} 11. Bf4 {[%clk 0:02:13.8]} 11... Nf8 {[%clk 0:02:54.6]} 12. O-O-O
{[%clk 0:02:00.6]} 12... Ne6 {[%clk 0:02:54.9]} 13. Rhe1 {[%clk 0:01:59.6]}
13... Rd8 {[%clk 0:02:55.4]} 14. c3 {[%clk 0:01:19.4]} 14... Kf8 {[%clk
0:02:54.9]} 15. Bh2 {[%clk 0:01:17.2]} 15... a5 {[%clk 0:02:37.8]} 16. a4 {[%clk
0:01:15.7]} 16... Bh6+ {[%clk 0:02:31.7]} 17. Kc2 {[%clk 0:01:15.4]} 17... Bf4
{[%clk 0:02:32.1]} 18. Rxe6 {[%clk 0:00:37.4]} 18... Bxh2 {[%clk 0:02:32.4]} 19.
Rxf6 {[%clk 0:00:37.7]} 19... Kg7 {[%clk 0:02:33]} 20. Rxf7+ {[%clk 0:00:34.2]}
20... Kxf7 {[%clk 0:02:33.9]} 21. Nxh2 {[%clk 0:00:34.6]} 21... Be6 {[%clk
0:02:33.8]} 22. c4 {[%clk 0:00:27]} 22... Rac8 {[%clk 0:02:31.9]} 23. Kc3 {[%clk
0:00:27.1]} 23... b5 {[%clk 0:02:32]} 24. axb5 {[%clk 0:00:26.6]} 24... cxb5
{[%clk 0:02:32.9]} 25. c5 {[%clk 0:00:26]} 25... b4+ {[%clk 0:02:33.4]} 26. Kc2
{[%clk 0:00:22.1]} 26... a4 {[%clk 0:02:25.6]} 27. Be4 {[%clk 0:00:18.8]} 27...
Bb3+ {[%clk 0:02:25.1]} 28. Kc1 {[%clk 0:00:16.2]} 28... Bxd1 {[%clk 0:02:26]}
29. Kxd1 {[%clk 0:00:14.2]} 29... Rxd4+ {[%clk 0:02:26.1]} 0-1

[Event "Late-Titled-Tuesday-Blitz-June-04-2024"]
[Site "Chess.com"]
[Date "2024.06.04"]
[Round "2"]
[White "HalfIsCrayfish"]
[Black "albayo"]
[Result "1-0"]
[WhiteElo "2552"]
[BlackElo "2333"]
[TimeControl "180+1"]
[EndTime "14:14:47 PDT"]
[Termination "HalfIsCrayfish won by resignation"]

1. e4 {[%clk 0:02:56.7]} 1... d5 {[%clk 0:02:59.8]} 2. Nc3 {[%clk 0:02:51.8]}
2... dxe4 {[%clk 0:02:58.7]} 3. Nxe4 {[%clk 0:02:51.3]} 3... Nf6 {[%clk
0:02:59.6]} 4. d3 {[%clk 0:02:51.2]} 4... Bf5 {[%clk 0:02:58.4]} 5. Ng3 {[%clk
0:02:49.1]} 5... Bg6 {[%clk 0:02:58.8]} 6. Be2 {[%clk 0:02:49.8]} 6... e6 {[%clk
0:02:57.9]} 7. Nf3 {[%clk 0:02:50.3]} 7... Be7 {[%clk 0:02:57.5]} 8. O-O {[%clk
0:02:50.8]} 8... O-O {[%clk 0:02:57.5]} 9. Bf4 {[%clk 0:02:50.7]} 9... c6 {[%clk
0:02:57.9]} 10. Qd2 {[%clk 0:02:50.9]} 10... Nd5 {[%clk 0:02:57.4]} 11. Be5
{[%clk 0:02:48.7]} 11... Nd7 {[%clk 0:02:56.5]} 12. Rfe1 {[%clk 0:02:46.8]}
12... Nxe5 {[%clk 0:02:56.4]} 13. Nxe5 {[%clk 0:02:47.7]} 13... Bf6 {[%clk
0:02:56.8]} 14. Nxg6 {[%clk 0:02:47.9]} 14... hxg6 {[%clk 0:02:57.7]} 15. c3
{[%clk 0:02:48.4]} 15... Bg5 {[%clk 0:02:50.1]} 16. Qc2 {[%clk 0:02:46.8]} 16...
b5 {[%clk 0:02:47]} 17. Rad1 {[%clk 0:02:47]} 17... a5 {[%clk 0:02:47]} 18. Bf3
{[%clk 0:02:47.1]} 18... b4 {[%clk 0:02:46.8]} 19. Ne4 {[%clk 0:02:47.4]} 19...
Be7 {[%clk 0:02:47]} 20. c4 {[%clk 0:02:46.5]} 20... Nf4 {[%clk 0:02:41.6]} 21.
d4 {[%clk 0:02:44.1]} 21... Qc7 {[%clk 0:02:23.6]} 22. Qd2 {[%clk 0:02:42.8]}
22... Rfd8 {[%clk 0:02:21.2]} 23. g3 {[%clk 0:02:42]} 23... Nh5 {[%clk
0:02:10.2]} 24. Bxh5 {[%clk 0:02:39]} 24... gxh5 {[%clk 0:02:11]} 25. Qe2 {[%clk
0:02:38.1]} 25... g6 {[%clk 0:02:08.2]} 26. Rd3 {[%clk 0:02:38.4]} 26... c5
{[%clk 0:01:59.3]} 27. dxc5 {[%clk 0:02:29.8]} 27... Rxd3 {[%clk 0:01:57.7]} 28.
Qxd3 {[%clk 0:02:28]} 28... Bxc5 {[%clk 0:01:56.9]} 29. Nxc5 {[%clk 0:02:27]}
29... Qxc5 {[%clk 0:01:55.6]} 30. b3 {[%clk 0:02:27.3]} 30... a4 {[%clk
0:01:54.6]} 31. Rd1 {[%clk 0:02:27.6]} 31... axb3 {[%clk 0:01:51.7]} 32. axb3
{[%clk 0:02:28.5]} 32... Ra3 {[%clk 0:01:48.6]} 33. Qf3 {[%clk 0:02:28.5]} 33...
Qf5 {[%clk 0:01:44.9]} 34. Rd8+ {[%clk 0:02:24.3]} 34... Kg7 {[%clk 0:01:43.1]}
35. Qe3 {[%clk 0:02:21]} 35... Ra1+ {[%clk 0:01:39.4]} 36. Kg2 {[%clk 0:02:20]}
36... Qb1 {[%clk 0:01:31.8]} 37. Qe5+ {[%clk 0:02:15]} 37... f6 {[%clk
0:01:27.8]} 38. Rd7+ {[%clk 0:02:14.7]} 38... Kh6 {[%clk 0:01:25]} 39. Qf4+
{[%clk 0:02:14.9]} 39... g5 {[%clk 0:01:07]} 40. Qxf6+ {[%clk 0:02:15.8]} 40...
Qg6 {[%clk 0:01:07.1]} 41. Qf8+ {[%clk 0:02:13.2]} 1-0

[Event "Late-Titled-Tuesday-Blitz-June-04-2024"]
[Site "Chess.com"]
[Date "2024.06.04"]
[Round "2"]
[White "Godzillator"]
[Black "FischerKasparow"]
[Result "1-0"]
[WhiteElo "2434"]
[BlackElo "2096"]
[TimeControl "180+1"]
[EndTime "14:14:47 PDT"]
[Termination "Godzillator won by resignation"]

1. e4 {[%clk 0:03:00.9]} 1... e6 {[%clk 0:02:59.6]} 2. d4 {[%clk 0:02:59.9]}
2... d5 {[%clk 0:02:56.7]} 3. exd5 {[%clk 0:03:00]} 3... exd5 {[%clk 0:02:55.9]}
4. Bd3 {[%clk 0:02:59.3]} 4... Bd6 {[%clk 0:02:55.4]} 5. Ne2 {[%clk 0:02:56.9]}
5... Ne7 {[%clk 0:02:54.8]} 6. O-O {[%clk 0:02:56.5]} 6... O-O {[%clk
0:02:50.9]} 7. Bf4 {[%clk 0:02:54.1]} 7... Nbc6 {[%clk 0:02:46.8]} 8. c3 {[%clk
0:02:53]} 8... Ng6 {[%clk 0:02:45]} 9. Bg3 {[%clk 0:02:53]} 9... Bg4 {[%clk
0:02:42.7]} 10. Qc2 {[%clk 0:02:50.4]} 10... Re8 {[%clk 0:02:38.4]} 11. f3
{[%clk 0:02:48.6]} 11... Bxg3 {[%clk 0:02:37.6]} 12. Nxg3 {[%clk 0:02:45.2]}
12... Be6 {[%clk 0:02:36.1]} 13. Nd2 {[%clk 0:02:40.6]} 13... Nce7 {[%clk
0:02:10.1]} 14. Rae1 {[%clk 0:02:35.6]} 14... Nf8 {[%clk 0:02:09.2]} 15. Nb3
{[%clk 0:02:32.3]} 15... Neg6 {[%clk 0:02:05.6]} 16. Nc5 {[%clk 0:02:30.8]}
16... Bc8 {[%clk 0:02:05.2]} 17. Nf5 {[%clk 0:02:21.8]} 17... Nf4 {[%clk
0:02:01.1]} 18. Bb5 {[%clk 0:02:09.9]} 18... c6 {[%clk 0:01:58.8]} 19. Bd3
{[%clk 0:02:03.9]} 19... b6 {[%clk 0:01:53.6]} 20. Nb3 {[%clk 0:02:02.4]} 20...
Qg5 {[%clk 0:01:44]} 21. Rxe8 {[%clk 0:01:56]} 21... Nxd3 {[%clk 0:01:36.2]} 22.
Rxc8 {[%clk 0:01:49.4]} 22... Rxc8 {[%clk 0:01:31.2]} 23. Qxd3 {[%clk
0:01:49.5]} 23... Ne6 {[%clk 0:01:30.9]} 24. f4 {[%clk 0:01:38.1]} 24... Nxf4
{[%clk 0:01:24.2]} 25. Rxf4 {[%clk 0:01:38]} 25... Qxf4 {[%clk 0:01:21.2]} 26.
Ne7+ {[%clk 0:01:38.2]} 26... Kf8 {[%clk 0:01:21.2]} 27. Nxc8 {[%clk 0:01:38.7]}
27... Qc7 {[%clk 0:01:17.9]} 28. Qf5 {[%clk 0:01:36.7]} 28... g6 {[%clk
0:01:15.3]} 29. Qe5 {[%clk 0:01:30.6]} 29... Qxc8 {[%clk 0:01:10.2]} 30. Qh8+
{[%clk 0:01:30.5]} 1-0

[Event "Late-Titled-Tuesday-Blitz-June-04-2024"]
[Site "Chess.com"]
[Date "2024.06.04"]
[Round "2"]
[White "Attacker_2006"]
[Black "KVAIDAN"]
[Result "0-1"]
[WhiteElo "2533"]
[BlackElo "2348"]
[TimeControl "180+1"]
[EndTime "14:14:50 PDT"]
[Termination "KVAIDAN won by resignation"]

1. e4 {[%clk 0:03:00.9]} 1... e5 {[%clk 0:02:58.5]} 2. Nf3 {[%clk 0:03:01]} 2...
d5 {[%clk 0:02:58.2]} 3. Nxe5 {[%clk 0:03:00.5]} 3... Bd6 {[%clk 0:02:56.2]} 4.
d4 {[%clk 0:02:59.5]} 4... dxe4 {[%clk 0:02:55.9]} 5. Nc4 {[%clk 0:02:51.7]}
5... Nf6 {[%clk 0:02:55.6]} 6. Nc3 {[%clk 0:02:48.3]} 6... Nc6 {[%clk
0:02:54.8]} 7. Bg5 {[%clk 0:02:44.2]} 7... Be7 {[%clk 0:02:51.3]} 8. d5 {[%clk
0:02:27.9]} 8... Nb4 {[%clk 0:02:49.7]} 9. Bxf6 {[%clk 0:02:25.5]} 9... Bxf6
{[%clk 0:02:45.5]} 10. Nxe4 {[%clk 0:02:22.1]} 10... O-O {[%clk 0:02:18.6]} 11.
c3 {[%clk 0:02:04.3]} 11... Nxd5 {[%clk 0:02:16.5]} 12. Nxf6+ {[%clk 0:02:04.3]}
12... Nxf6 {[%clk 0:02:15.7]} 13. Be2 {[%clk 0:02:02.5]} 13... Qxd1+ {[%clk
0:02:07.3]} 14. Rxd1 {[%clk 0:02:03.4]} 14... Re8 {[%clk 0:02:07.3]} 15. Ne3
{[%clk 0:02:02.5]} 15... Be6 {[%clk 0:02:04.5]} 16. b3 {[%clk 0:01:59.2]} 16...
a5 {[%clk 0:02:04.5]} 17. O-O {[%clk 0:01:52.8]} 17... a4 {[%clk 0:02:04.7]} 18.
c4 {[%clk 0:01:29.5]} 18... axb3 {[%clk 0:02:03.6]} 19. axb3 {[%clk 0:01:30]}
19... Ra2 {[%clk 0:02:04]} 20. Bf3 {[%clk 0:01:26.9]} 20... c6 {[%clk
0:02:02.4]} 21. Ra1 {[%clk 0:01:13.9]} 21... Rea8 {[%clk 0:02:01.7]} 22. Rxa2
{[%clk 0:01:10.6]} 22... Rxa2 {[%clk 0:02:01.4]} 23. Rb1 {[%clk 0:01:09.9]}
23... Nd7 {[%clk 0:01:59.8]} 24. Kf1 {[%clk 0:01:02.3]} 24... g6 {[%clk
0:01:58.4]} 25. Ke1 {[%clk 0:01:00.4]} 25... Nc5 {[%clk 0:01:57.4]} 26. Nd1
{[%clk 0:00:46]} 26... Bf5 {[%clk 0:01:50.6]} 27. Rc1 {[%clk 0:00:46.1]} 27...
Nd3+ {[%clk 0:01:50.5]} 0-1

[Event "Late-Titled-Tuesday-Blitz-June-04-2024"]
[Site "Chess.com"]
[Date "2024.06.04"]
[Round "2"]
[White "pirulillo"]
[Black "Alex_Banzea"]
[Result "1-0"]
[WhiteElo "2367"]
[BlackElo "2599"]
[TimeControl "180+1"]
[EndTime "14:14:51 PDT"]
[Termination "pirulillo won by resignation"]

1. e4 {[%clk 0:02:58.1]} 1... c6 {[%clk 0:02:59.5]} 2. Nc3 {[%clk 0:02:55.8]}
2... d5 {[%clk 0:03:00.4]} 3. Nf3 {[%clk 0:02:54.9]} 3... dxe4 {[%clk 0:03:01]}
4. Nxe4 {[%clk 0:02:53.3]} 4... Nf6 {[%clk 0:03:01.7]} 5. Qe2 {[%clk 0:02:52.9]}
5... Nxe4 {[%clk 0:03:02.3]} 6. Qxe4 {[%clk 0:02:53.6]} 6... Be6 {[%clk
0:03:03.1]} 7. c4 {[%clk 0:02:44.9]} 7... g6 {[%clk 0:03:02]} 8. Qe5 {[%clk
0:02:36.9]} 8... Rg8 {[%clk 0:03:02.2]} 9. d4 {[%clk 0:02:31.4]} 9... Bg4 {[%clk
0:03:02.5]} 10. Be3 {[%clk 0:02:29.9]} 10... Bxf3 {[%clk 0:02:40.6]} 11. gxf3
{[%clk 0:02:30.8]} 11... Bg7 {[%clk 0:02:41.3]} 12. Qf4 {[%clk 0:02:22.6]} 12...
Qa5+ {[%clk 0:02:01.3]} 13. Bd2 {[%clk 0:02:21.7]} 13... Qb6 {[%clk 0:02:00]}
14. Bc3 {[%clk 0:02:19.8]} 14... Nd7 {[%clk 0:01:57.3]} 15. Bh3 {[%clk
0:02:13.4]} 15... O-O-O {[%clk 0:01:36.1]} 16. Qxf7 {[%clk 0:02:05.6]} 16...
Bxd4 {[%clk 0:01:16.6]} 17. Bxd7+ {[%clk 0:02:03.1]} 17... Kb8 {[%clk
0:00:50.1]} 18. Qf4+ {[%clk 0:01:48.8]} 18... e5 {[%clk 0:00:49]} 19. Bxd4
{[%clk 0:01:47.8]} 19... exf4 {[%clk 0:00:41.1]} 20. Bxb6 {[%clk 0:01:47]} 20...
axb6 {[%clk 0:00:38.7]} 21. O-O-O {[%clk 0:01:46.5]} 21... Kc7 {[%clk
0:00:34.6]} 22. Bh3 {[%clk 0:01:44.3]} 1-0

[Event "Late-Titled-Tuesday-Blitz-June-04-2024"]
[Site "Chess.com"]
[Date "2024.06.04"]
[Round "2"]
[White "Viktor_Poddubnyi"]
[Black "Evan_Attaker"]
[Result "0-1"]
[WhiteElo "2380"]
[BlackElo "2697"]
[TimeControl "180+1"]
[EndTime "14:14:56 PDT"]
[Termination "Evan_Attaker won by resignation"]

1. e4 {[%clk 0:03:00.8]} 1... d6 {[%clk 0:02:59.4]} 2. d4 {[%clk 0:03:00.5]}
2... Nf6 {[%clk 0:02:59.1]} 3. Nc3 {[%clk 0:03:00.2]} 3... g6 {[%clk 0:02:59.2]}
4. Bg5 {[%clk 0:02:59.7]} 4... Bg7 {[%clk 0:02:59.3]} 5. e5 {[%clk 0:02:59.5]}
5... dxe5 {[%clk 0:02:59.7]} 6. dxe5 {[%clk 0:03:00.4]} 6... Ng4 {[%clk
0:02:59.8]} 7. Qxd8+ {[%clk 0:02:55.4]} 7... Kxd8 {[%clk 0:03:00.3]} 8. Rd1+
{[%clk 0:02:54.1]} 8... Bd7 {[%clk 0:03:00.5]} 9. f4 {[%clk 0:02:29.9]} 9... h6
{[%clk 0:02:59.7]} 10. Bh4 {[%clk 0:02:27.6]} 10... g5 {[%clk 0:03:00.2]} 11.
fxg5 {[%clk 0:01:58.5]} 11... hxg5 {[%clk 0:03:01.1]} 12. Bxg5 {[%clk 0:01:59]}
12... Nxh2 {[%clk 0:02:59.5]} 13. Nh3 {[%clk 0:01:28.3]} 13... Bxe5 {[%clk
0:02:52.5]} 14. Bc4 {[%clk 0:01:05.4]} 14... Rxh3 {[%clk 0:02:42.9]} 15. gxh3
{[%clk 0:00:48.5]} 15... Nf3+ {[%clk 0:02:41.4]} 16. Kf2 {[%clk 0:00:46]} 16...
Nxg5 {[%clk 0:02:40.9]} 17. h4 {[%clk 0:00:46.1]} 17... Nh7 {[%clk 0:02:34.2]}
18. Bxf7 {[%clk 0:00:39.5]} 18... Nc6 {[%clk 0:02:32.7]} 19. h5 {[%clk
0:00:35.8]} 19... Bd4+ {[%clk 0:02:30.5]} 20. Kg2 {[%clk 0:00:24.2]} 20... e6
{[%clk 0:02:30]} 21. Ne4 {[%clk 0:00:18.8]} 21... Ke7 {[%clk 0:02:29]} 22. Bg6
{[%clk 0:00:19.1]} 22... Nf6 {[%clk 0:02:26.6]} 23. Nxf6 {[%clk 0:00:14.7]}
23... Bxf6 {[%clk 0:02:27.5]} 24. Rhf1 {[%clk 0:00:14.2]} 24... Ne5 {[%clk
0:02:26.9]} 0-1

[Event "Late-Titled-Tuesday-Blitz-June-04-2024"]
[Site "Chess.com"]
[Date "2024.06.04"]
[Round "2"]
[White "2L8IWUN"]
[Black "SilverCityIndigo"]
[Result "0-1"]
[WhiteElo "2203"]
[BlackElo "2472"]
[TimeControl "180+1"]
[EndTime "14:14:59 PDT"]
[Termination "SilverCityIndigo won by resignation"]

1. d4 {[%clk 0:02:59.9]} 1... d5 {[%clk 0:02:53.8]} 2. Nf3 {[%clk 0:03:00.4]}
2... e6 {[%clk 0:02:54.3]} 3. Bf4 {[%clk 0:03:00.7]} 3... c6 {[%clk 0:02:54.5]}
4. e3 {[%clk 0:03:01.2]} 4... Bd6 {[%clk 0:02:54.5]} 5. Bxd6 {[%clk 0:03:01.2]}
5... Qxd6 {[%clk 0:02:55.4]} 6. Bd3 {[%clk 0:03:01.4]} 6... Ne7 {[%clk 0:02:56]}
7. O-O {[%clk 0:03:01.9]} 7... O-O {[%clk 0:02:56.6]} 8. Nbd2 {[%clk 0:02:58.4]}
8... Ng6 {[%clk 0:02:54.9]} 9. c4 {[%clk 0:02:48.2]} 9... b6 {[%clk 0:02:54.3]}
10. e4 {[%clk 0:02:46.8]} 10... Nf4 {[%clk 0:02:49]} 11. Bc2 {[%clk 0:02:35]}
11... dxe4 {[%clk 0:02:34.7]} 12. Nxe4 {[%clk 0:02:31]} 12... Qe7 {[%clk
0:02:35.2]} 13. g3 {[%clk 0:02:28.4]} 13... Ng6 {[%clk 0:02:34.5]} 14. d5 {[%clk
0:02:25.1]} 14... exd5 {[%clk 0:02:28]} 15. cxd5 {[%clk 0:02:26]} 15... cxd5
{[%clk 0:02:28.1]} 16. Qxd5 {[%clk 0:02:26.9]} 16... Bb7 {[%clk 0:02:28.1]} 17.
Qf5 {[%clk 0:02:14.7]} 17... Rc8 {[%clk 0:02:16.1]} 18. Bb3 {[%clk 0:01:20.3]}
18... Qxe4 {[%clk 0:01:47.9]} 19. Qxf7+ {[%clk 0:01:19.7]} 19... Kh8 {[%clk
0:01:47.7]} 20. Rfe1 {[%clk 0:01:02.6]} 20... Qxf3 {[%clk 0:01:32.1]} 21. Re8+
{[%clk 0:00:50.5]} 21... Rxe8 {[%clk 0:01:32]} 22. Qxe8+ {[%clk 0:00:49.6]}
22... Qf8 {[%clk 0:01:32.4]} 0-1

[Event "Late-Titled-Tuesday-Blitz-June-04-2024"]
[Site "Chess.com"]
[Date "2024.06.04"]
[Round "2"]
[White "GoltsevDmitry2000"]
[Black "NoSpaghettiForYou"]
[Result "0-1"]
[WhiteElo "2757"]
[BlackElo "2546"]
[TimeControl "180+1"]
[EndTime "14:15:05 PDT"]
[Termination "NoSpaghettiForYou won by checkmate"]

1. e4 {[%clk 0:02:59.1]} 1... c5 {[%clk 0:02:59.2]} 2. Nf3 {[%clk 0:02:59.2]}
2... Nc6 {[%clk 0:02:59.4]} 3. d4 {[%clk 0:03:00.1]} 3... cxd4 {[%clk
0:02:59.4]} 4. Nxd4 {[%clk 0:03:01]} 4... Nf6 {[%clk 0:03:00]} 5. Nc3 {[%clk
0:03:01.7]} 5... h5 {[%clk 0:03:00.2]} 6. f4 {[%clk 0:03:01.7]} 6... e5 {[%clk
0:02:52.6]} 7. Nf5 {[%clk 0:02:59.1]} 7... d6 {[%clk 0:02:40.6]} 8. fxe5 {[%clk
0:02:43.9]} 8... Nxe4 {[%clk 0:02:24]} 9. Nxe4 {[%clk 0:02:29.8]} 9... Bxf5
{[%clk 0:02:24.1]} 10. Nxd6+ {[%clk 0:02:30.1]} 10... Bxd6 {[%clk 0:02:23.8]}
11. Qxd6 {[%clk 0:02:31]} 11... Qh4+ {[%clk 0:02:23.2]} 12. g3 {[%clk
0:02:16.4]} 12... Qe4+ {[%clk 0:02:22.9]} 13. Kf2 {[%clk 0:02:17.3]} 13... Rd8
{[%clk 0:02:09.1]} 14. Qc5 {[%clk 0:02:13.1]} 14... Qxh1 {[%clk 0:02:00.9]} 15.
Bg2 {[%clk 0:02:06]} 15... Qd1 {[%clk 0:02:00.6]} 16. Be3 {[%clk 0:02:00.4]}
16... Qxc2+ {[%clk 0:01:58.3]} 17. Qxc2 {[%clk 0:01:59.9]} 17... Bxc2 {[%clk
0:01:59.2]} 18. Rc1 {[%clk 0:01:59.4]} 18... Bf5 {[%clk 0:01:56.8]} 19. Bxc6+
{[%clk 0:01:56.5]} 19... bxc6 {[%clk 0:01:57.7]} 20. Rxc6 {[%clk 0:01:57.2]}
20... O-O {[%clk 0:01:56.9]} 21. Bxa7 {[%clk 0:01:32.3]} 21... Rd2+ {[%clk
0:01:56.3]} 22. Ke3 {[%clk 0:01:31.6]} 22... Rxb2 {[%clk 0:01:56.3]} 23. a4
{[%clk 0:01:32.1]} 23... Ra2 {[%clk 0:01:54.5]} 24. Rc4 {[%clk 0:01:30.4]} 24...
Ra8 {[%clk 0:01:53.8]} 25. Bb6 {[%clk 0:01:28.9]} 25... R2xa4 {[%clk 0:01:53.4]}
26. Rc7 {[%clk 0:01:27.4]} 26... Ra3+ {[%clk 0:01:53.2]} 27. Kf4 {[%clk
0:01:26.8]} 27... Bg6 {[%clk 0:01:52.5]} 28. Bd4 {[%clk 0:01:21.1]} 28... R8a4
{[%clk 0:01:48.9]} 29. e6 {[%clk 0:01:14.6]} 29... Rxd4+ {[%clk 0:01:48.7]} 30.
Ke5 {[%clk 0:01:15.1]} 30... Re4+ {[%clk 0:01:49.3]} 31. Kd5 {[%clk 0:01:12.9]}
31... Rxe6 {[%clk 0:01:49.7]} 32. Rc8+ {[%clk 0:01:04.4]} 32... Kh7 {[%clk
0:01:49.8]} 33. h4 {[%clk 0:01:01.8]} 33... Rd3+ {[%clk 0:01:50.1]} 34. Kc4
{[%clk 0:01:01]} 34... Rd1 {[%clk 0:01:51]} 35. Ra8 {[%clk 0:01:00.6]} 35...
Rc6+ {[%clk 0:01:50.2]} 36. Kb5 {[%clk 0:01:00.6]} 36... Rc2 {[%clk 0:01:50.5]}
37. Ra3 {[%clk 0:00:59.3]} 37... Rb1+ {[%clk 0:01:50.4]} 38. Ka5 {[%clk
0:00:58.7]} 38... Rc8 {[%clk 0:01:50]} 39. Re3 {[%clk 0:00:58.5]} 39... Ra8#
{[%clk 0:01:50.3]} 0-1